bitfinex/quotes_SOLUSD_20241110
["timestamp","ask_amount","ask_price","bid_price","bid_amount"]
[1731198294780,23.776884,200.28,200.17,15.156]
[1731198296584,20.0,200.29,200.17,15.156]
[1731198296899,2.13603229,200.32,200.22,13.44895501]
[1731198297098,0.1,200.34,200.22,13.44895501]
[1731198297684,0.2,200.34,200.22,13.44895501]
[1731198298113,20.0,200.33,200.19,13.44895501]
[1731198298400,23.776884,200.32,200.19,13.44895501]
[1731198299004,20.0,200.31,200.19,13.44895501]
[1731198299205,23.776884,200.32,200.19,13.44895501]
[1731198299582,20.1,200.33,200.19,13.44895501]
[1731198299782,23.776884,200.32,200.19,13.44895501]
[1731198300093,23.776884,200.32,200.17,15.156]
[1731198300094,20.0,200.31,200.2,13.44895501]
[1731198302498,160.7,200.3,200.2,13.44895501]
[1731198303398,160.7,200.3,200.21,13.44895501]
[1731198303599,160.7,200.36,200.27,13.44895501]
[1731198303895,160.7,200.39,200.28,13.44895501]
[1731198304692,160.7,200.39,200.2,13.54895501]
[1731198304693,0.2,200.36,200.2,15.9759]
[1731198304911,0.2,200.36,200.21,13.44895501]
[1731198305094,23.776884,200.36,200.23,13.44895501]
[1731198305306,23.776884,200.36,200.2,15.9759]
[1731198305307,20.0,200.35,200.24,13.44895501]
[1731198305506,43.776884,200.38,200.26,13.44895501]
[1731198305697,20.0,200.36,200.25,13.44895501]
[1731198305904,20.0,200.36,200.23,13.44895501]
[1731198307632,20.0,200.34,200.21,13.44895501]
[1731198309107,20.0,200.34,200.22,13.44895501]
[1731198310321,20.0,200.34,200.2,15.9759]
[1731198310322,160.7,200.33,200.21,13.44895501]
[1731198311225,160.7,200.33,200.22,13.44895501]
[1731198312618,160.7,200.33,200.23,13.44895501]
[1731198312820,160.7,200.33,200.22,13.44895501]
[1731198314415,160.7,200.32,200.22,13.44895501]
[1731198315521,160.7,200.32,200.2,15.9759]
[1731198315707,160.7,200.32,200.21,13.44895501]
[1731198316615,23.776884,200.32,200.2,15.9759]
[1731198316820,6.5495,200.45,200.31,13.44895501]
[1731198317002,6.5495,200.45,200.37,13.44895501]
[1731198317202,6.6495,200.5,200.37,13.44895501]
[1731198317402,6.6495,200.5,200.36,13.44895501]
[1731198318321,23.776884,200.49,200.36,13.44895501]
[1731198318499,23.776884,200.49,200.38,13.44895501]
[1731198320423,20.0,200.48,200.36,29.63005501]
[1731198320608,20.0,200.48,200.37,13.44895501]
[1731198322421,23.776884,200.47,200.36,16.1811]
[1731198322710,23.776884,200.43,200.31,16.1811]
[1731198322909,20.0,200.42,200.31,16.1811]
[1731198323525,23.776884,200.41,200.31,16.1811]
[1731198325930,0.1,200.48,200.37,13.44895501]
[1731198326510,0.1,200.48,200.36,13.44895501]
[1731198327329,8.81959906,200.5,200.36,13.44895501]
[1731198327523,20.0,200.49,200.36,13.44895501]
[1731198327728,20.0,200.47,200.36,13.44895501]
[1731198328721,184.476884,200.48,200.38,13.44895501]
[1731198328928,6.5495,200.5,200.4,13.44895501]
[1731198329129,6.5495,200.5,200.42,13.44895501]
[1731198329844,160.7,200.54,200.42,13.44895501]
[1731198330721,160.7,200.54,200.4,16.1811]
[1731198330722,23.776884,200.53,200.41,13.44895501]
[1731198331531,20.0,200.52,200.42,13.44895501]
[1731198331925,20.0,200.52,200.41,13.44895501]
[1731198332323,20.0,200.52,200.42,13.44895501]
[1731198332837,20.0,200.52,200.43,13.44895501]
[1731198333135,23.776884,200.53,200.44,13.44895501]
[1731198333322,160.7,200.54,200.44,13.44895501]
[1731198333645,6.5495,200.55,200.46,13.44895501]
[1731198334338,6.5495,200.55,200.44,13.44895501]
[1731198334641,6.5495,200.55,200.45,13.44895501]
[1731198335328,20.0,200.54,200.4,16.1811]
[1731198335534,180.7,200.54,200.42,13.44895501]
[1731198336132,160.7,200.54,200.42,13.44895501]
[1731198336540,160.7,200.54,200.43,13.44895501]
[1731198337731,160.7,200.54,200.45,13.44895501]
[1731198337933,6.5495,200.55,200.44,13.44895501]
[1731198341029,167.2495,200.55,200.44,13.44895501]
[1731198342241,160.7,200.55,200.46,13.44895501]
[1731198343348,160.7,200.57,200.46,13.44895501]
[1731198343929,166.9037,200.6,200.5,13.44895501]
[1731198344172,6.2037,200.6,200.51,13.44895501]
[1731198344447,15.1307,200.61,200.51,13.44895501]
[1731198344850,2.14217091,200.63,200.51,13.44895501]
[1731198345060,6.2037,200.65,200.53,13.44895501]
[1731198345343,175.8307,200.67,200.52,13.44895501]
[1731198345554,0.1,200.66,200.53,15.745]
[1731198346044,178.04948731,200.67,200.53,15.745]
[1731198346250,160.7,200.67,200.55,13.44895501]
[1731198346753,160.7,200.67,200.54,13.44895501]
[1731198347533,20.0,200.66,200.53,35.75535501]
[1731198347733,20.0,200.66,200.53,22.3064]
[1731198348456,20.0,200.64,200.53,22.3064]
[1731198348854,20.0,200.62,200.53,15.745]
[1731198349045,20.0,200.6,200.53,15.745]
[1731198349458,160.8,200.68,200.53,29.19395501]
[1731198349657,180.7,200.67,200.54,13.44895501]
[1731198349863,180.7,200.67,200.53,29.19395501]
[1731198350154,20.0,200.65,200.53,29.19395501]
[1731198350358,160.7,200.64,200.53,15.745]
[1731198352452,43.776884,200.63,200.53,15.745]
[1731198353740,43.776884,200.63,200.55,4.9862]
[1731198354357,43.976884,200.63,200.55,4.9862]
[1731198354959,0.1,200.61,200.55,4.9862]
[1731198355845,43.976884,200.63,200.55,4.9862]
[1731198356469,43.876884,200.63,200.55,4.9862]
[1731198358558,43.776884,200.63,200.55,4.9862]
[1731198358747,160.7,200.62,200.55,4.9862]
[1731198358949,160.7,200.66,200.55,4.9862]
[1731198360052,20.0,200.65,200.55,4.9862]
[1731198360642,20.0,200.65,200.54,13.44895501]
[1731198362665,20.0,200.65,200.53,15.745]
[1731198363974,20.2,200.67,200.53,15.745]
[1731198364277,20.0,200.65,200.53,15.745]
[1731198364464,20.1,200.65,200.53,15.745]
[1731198364965,20.0,200.65,200.53,15.745]
[1731198366779,20.0,200.65,200.53,29.19395501]
[1731198366955,22.22031198,200.69,200.54,20.04185501]
[1731198367569,22.22031198,200.69,200.55,13.44895501]
[1731198367877,2.22031198,200.69,200.56,13.44895501]
[1731198368071,0.1,200.77,200.62,13.44895501]
[1731198368271,0.1,200.76,200.62,13.44895501]
[1731198368474,0.1,200.76,200.6,13.44895501]
[1731198368475,0.1,200.75,200.6,13.44895501]
[1731198368662,0.1,200.73,200.58,13.44895501]
[1731198368982,5.0818,200.73,200.57,29.08145501]
[1731198369159,0.1,200.73,200.58,13.44895501]
[1731198369676,0.1,200.73,200.57,29.08145501]
[1731198370073,0.1,200.71,200.57,29.08145501]
[1731198370273,20.0,200.72,200.57,15.6325]
[1731198370456,0.1,200.69,200.57,15.6325]
[1731198370784,20.0,200.66,200.57,15.6325]
[1731198371082,20.1,200.66,200.57,15.6325]
[1731198371463,20.0,200.64,200.57,15.6325]
[1731198371657,23.776884,200.63,200.5,15.6325]
[1731198371883,20.0,200.62,200.5,15.6325]
[1731198375078,20.0,200.6,200.5,15.6325]
[1731198376269,23.776884,200.64,200.5,29.08145501]
[1731198376782,20.0,200.61,200.5,15.6325]
[1731198379776,5.32512403,200.72,200.57,13.44895501]
[1731198379993,0.1,200.72,200.57,13.44895501]
[1731198380678,2.32294512,200.72,200.56,13.44895501]
[1731198380883,0.1,200.7,200.54,29.33455501]
[1731198381084,23.876884,200.7,200.54,29.33455501]
[1731198381492,20.0,200.69,200.54,29.33455501]
[1731198381674,20.0,200.67,200.54,29.33455501]
[1731198381870,20.0,200.63,200.54,15.8856]
[1731198383173,20.1,200.64,200.54,15.8856]
[1731198383370,20.0,200.64,200.54,15.8856]
[1731198383869,20.1,200.64,200.54,15.8856]
[1731198385185,5.89245737,200.71,200.56,13.44895501]
[1731198385386,0.1,200.7,200.56,13.44895501]
[1731198385594,0.1,200.7,200.55,13.44895501]
[1731198385796,5.24620459,200.73,200.56,13.44895501]
[1731198385982,165.94620459,200.73,200.56,13.44895501]
[1731198386566,5.14620459,200.73,200.57,13.44895501]
[1731198386875,7.30272777,200.73,200.61,13.44895501]
[1731198387088,23.1054,200.74,200.59,19.98125501]
[1731198387882,23.1054,200.74,200.6,13.44895501]
[1731198388195,6.5137,200.74,200.61,13.44895501]
[1731198388970,6.5137,200.74,200.63,15.8856]
[1731198390592,20.0,200.73,200.63,15.8856]
[1731198390801,2.18444932,200.77,200.63,15.8856]
[1731198390986,20.0,200.78,200.63,29.33455501]
[1731198391681,20.0,200.78,200.63,15.8856]
[1731198392479,20.1,200.78,200.63,15.8856]
[1731198392679,20.0,200.75,200.63,15.8856]
[1731198392977,20.0,200.75,200.59,6.5323]
[1731198393176,23.876884,200.74,200.59,6.5323]
[1731198393380,0.1,200.72,200.58,15.8856]
[1731198393598,23.876884,200.7,200.58,15.8856]
[1731198393812,23.776884,200.68,200.54,6.5323]
[1731198394096,20.0,200.67,200.54,6.5323]
[1731198394600,20.0,200.69,200.56,13.44895501]
[1731198394785,160.7,200.71,200.54,19.98125501]
[1731198394786,20.0,200.7,200.54,19.98125501]
[1731198395192,20.0,200.7,200.54,6.5323]
[1731198396690,20.0,200.7,200.55,37.22583901]
[1731198397284,0.1,200.72,200.55,23.776884]
[1731198397497,27.17918673,200.74,200.55,37.22583901]
[1731198397808,0.1,200.73,200.55,37.22583901]
[1731198397987,23.876884,200.73,200.55,37.22583901]
[1731198398197,20.0,200.72,200.55,37.22583901]
[1731198398587,20.0,200.72,200.56,13.44895501]
[1731198399303,23.776884,200.73,200.57,13.44895501]
[1731198400594,20.0,200.72,200.57,13.44895501]
[1731198400796,20.0,200.72,200.56,13.44895501]
[1731198401206,20.0,200.72,200.57,13.44895501]
[1731198401805,20.0,200.73,200.57,13.44895501]
[1731198402105,20.0,200.73,200.56,13.44895501]
[1731198403205,160.7,200.72,200.56,13.44895501]
[1731198403410,20.0,200.71,200.56,13.44895501]
[1731198403592,20.0,200.71,200.55,23.776884]
[1731198403793,20.0,200.71,200.55,37.22583901]
[1731198404188,20.0,200.71,200.54,19.98125501]
[1731198404392,24.9823,200.71,200.54,19.98125501]
[1731198404685,20.0,200.71,200.54,19.98125501]
[1731198405401,24.9823,200.71,200.54,19.98125501]
[1731198405606,20.0,200.71,200.54,19.98125501]
[1731198405988,20.0,200.71,200.56,13.44895501]
[1731198406608,20.0,200.71,200.55,37.22583901]
[1731198407800,20.0,200.71,200.56,13.44895501]
[1731198408122,20.0,200.71,200.57,13.44895501]
[1731198409217,180.7,200.71,200.57,13.44895501]
[1731198409510,16.1451,200.68,200.54,13.44895501]
[1731198409712,16.1451,200.68,200.53,29.33455501]
[1731198409910,16.1451,200.68,200.53,15.8856]
[1731198410091,20.0,200.67,200.53,15.8856]
[1731198412412,20.0,200.67,200.53,29.33455501]
[1731198412703,20.0,200.67,200.53,15.8856]
[1731198413209,16.1451,200.68,200.57,13.44895501]
[1731198413390,16.1451,200.68,200.58,13.44895501]
[1731198413601,16.1451,200.68,200.53,15.8856]
[1731198413602,16.1451,200.68,200.59,13.44895501]
[1731198414001,16.1451,200.68,200.54,23.776884]
[1731198414205,16.1451,200.68,200.59,13.44895501]
[1731198414814,16.1451,200.68,200.57,13.44895501]
[1731198414994,16.1451,200.68,200.53,29.33455501]
[1731198415713,16.1451,200.68,200.55,13.44895501]
[1731198416407,16.1451,200.68,200.56,13.44895501]
[1731198416614,160.7,200.73,200.54,23.776884]
[1731198416916,6.6583,200.91,200.72,13.44895501]
[1731198417219,6.6583,200.91,200.73,13.44895501]
[1731198417809,0.1,200.9,200.71,13.44895501]
[1731198418012,0.1,200.9,200.7,29.18475501]
[1731198418500,0.1,200.9,200.71,13.44895501]
[1731198418702,6.7583,200.91,200.72,13.44895501]
[1731198418998,6.6583,200.91,200.73,13.44895501]
[1731198419197,20.0,200.9,200.73,13.44895501]
[1731198419407,20.0,200.9,200.7,15.7358]
[1731198419408,6.6583,200.91,200.74,13.44895501]
[1731198419802,6.6583,200.91,200.76,13.44895501]
[1731198419998,6.6583,200.91,200.71,23.776884]
[1731198420198,6.6583,200.91,200.76,13.44895501]
[1731198420422,6.6583,200.91,200.71,23.776884]
[1731198420598,6.6583,200.91,200.74,13.44895501]
[1731198420797,6.6583,200.91,200.76,13.44895501]
[1731198421522,20.0,200.9,200.76,13.44895501]
[1731198421900,6.6583,200.91,200.76,13.44895501]
[1731198422104,6.6583,200.91,200.75,13.44895501]
[1731198422423,6.6583,200.91,200.71,37.22583901]
[1731198422623,6.6583,200.91,200.73,13.44895501]
[1731198422808,6.6583,200.91,200.76,13.44895501]
[1731198423319,20.0,200.9,200.77,13.44895501]
[1731198425308,20.0,200.9,200.76,13.44895501]
[1731198426014,20.0,200.9,200.77,13.44895501]
[1731198426406,20.0,200.9,200.76,13.44895501]
[1731198426609,20.0,200.9,200.75,13.44895501]
[1731198426818,20.0,200.88,200.73,13.44895501]
[1731198427017,20.0,200.88,200.74,13.44895501]
[1731198427527,20.0,200.88,200.75,13.44895501]
[1731198427711,20.0,200.88,200.74,13.44895501]
[1731198428027,20.0,200.88,200.75,13.44895501]
[1731198430435,20.0,200.88,200.76,13.44895501]
[1731198430811,23.776884,200.9,200.76,13.44895501]
[1731198431027,20.0,200.89,200.76,13.44895501]
[1731198432224,20.0,200.89,200.7,29.28475501]
[1731198432225,20.0,200.9,200.79,13.44895501]
[1731198432429,167.3583,200.91,200.79,13.44895501]
[1731198432925,6.6583,200.91,200.79,13.44895501]
[1731198433709,6.6583,200.91,200.78,13.44895501]
[1731198434311,6.6583,200.91,200.71,23.776884]
[1731198434312,6.6583,200.91,200.8,13.44895501]
[1731198434526,6.6583,200.91,200.74,0.1]
[1731198434527,6.6583,200.91,200.81,13.44895501]
[1731198434730,6.6583,200.91,200.82,13.44895501]
[1731198435033,6.6583,200.91,200.85,13.44895501]
[1731198435411,6.6583,200.91,200.84,13.44895501]
[1731198436030,6.6583,200.91,200.83,13.44895501]
[1731198436455,6.1502,200.98,200.83,0.1]
[1731198436616,6.1502,200.98,200.9,13.44895501]
[1731198437017,6.1502,200.98,200.88,13.44895501]
[1731198437229,6.1502,200.98,200.87,13.44895501]
[1731198437531,6.1502,200.98,200.81,43.876884]
[1731198437532,6.1502,200.98,200.86,13.44895501]
[1731198437720,6.1502,200.98,200.84,13.44895501]
[1731198439332,6.1502,200.98,200.85,13.44895501]
[1731198440139,6.1502,200.98,200.86,13.44895501]
[1731198441344,6.1502,200.98,200.87,13.44895501]
[1731198441553,6.1502,200.98,200.88,13.44895501]
[1731198442529,6.1502,200.98,200.88,23.776884]
[1731198442768,160.7,201.09,200.97,13.44895501]
[1731198442769,2.14333595,201.06,200.97,13.44895501]
[1731198442924,15.1186,201.09,200.93,23.776884]
[1731198443117,6.1502,201.1,200.93,23.776884]
[1731198443118,8.27097681,201.1,200.96,13.44895501]
[1731198443629,8.27097681,201.1,200.97,13.44895501]
[1731198443827,6.1502,201.1,200.98,13.44895501]
[1731198444149,20.0,201.09,200.94,13.44895501]
[1731198444352,6.1502,201.1,200.94,13.44895501]
[1731198444921,6.1502,201.1,200.88,0.1]
[1731198445137,6.1502,201.1,200.92,13.44895501]
[1731198445537,20.0,201.09,200.93,13.44895501]
[1731198445729,20.0,201.09,200.92,13.44895501]
[1731198446244,20.0,201.07,200.92,13.44895501]
[1731198446447,45.045684,201.06,200.87,0.74634252]
[1731198446657,20.0,201.05,200.87,0.74634252]
[1731198446835,20.0,201.03,200.87,14.19529753]
[1731198447041,20.0,201.03,200.88,13.44895501]
[1731198447947,20.0,201.03,200.89,13.44895501]
[1731198448958,20.0,201.03,200.88,13.44895501]
[1731198449931,23.776884,201.02,200.87,14.19529753]
[1731198450635,20.0,201.01,200.87,14.19529753]
[1731198451147,2.14594221,201.04,200.88,13.44895501]
[1731198451148,20.0,201.02,200.88,13.44895501]
[1731198451542,20.0,201.02,200.89,13.44895501]
[1731198451745,20.0,201.03,200.9,13.44895501]
[1731198452043,21.2688,201.06,200.9,13.44895501]
[1731198452236,43.776884,201.05,200.9,13.44895501]
[1731198452435,43.776884,201.05,200.89,13.44895501]
[1731198455750,43.776884,201.05,200.9,13.44895501]
[1731198455942,23.42309138,201.06,200.93,13.44895501]
[1731198456330,21.2688,201.06,200.93,13.44895501]
[1731198457056,21.2688,201.06,200.96,13.44895501]
[1731198458162,21.2688,201.06,200.97,13.44895501]
[1731198458368,6.4861,201.11,201.01,13.44895501]
[1731198458662,6.4861,201.11,200.92,0.32549]
[1731198458663,6.4861,201.11,201.0,13.44895501]
[1731198458841,6.4861,201.11,200.99,13.44895501]
[1731198459241,6.4861,201.11,200.97,13.44895501]
[1731198459435,6.4861,201.11,200.98,13.44895501]
[1731198459864,6.4861,201.11,201.01,13.44895501]
[1731198460363,6.4861,201.11,201.0,13.44895501]
[1731198460562,6.4861,201.11,200.98,13.44895501]
[1731198460746,6.4861,201.11,200.99,13.44895501]
[1731198461755,2.12470825,201.16,200.92,0.1]
[1731198461756,20.0,201.15,201.02,13.44895501]
[1731198461955,6.4861,201.16,201.03,13.44895501]
[1731198462342,2.19213522,201.18,201.1,13.44895501]
[1731198462538,4.9681,201.29,201.06,6.2496]
[1731198462738,7.21774105,201.29,201.06,6.2496]
[1731198462941,15.7491,201.28,201.1,13.44895501]
[1731198463141,14.7491,201.28,201.11,13.44895501]
[1731198463359,4.9686,201.26,201.11,13.44895501]
[1731198463564,24.9686,201.26,201.09,13.44895501]
[1731198463749,0.1,201.25,201.06,13.44895501]
[1731198463947,6.4861,201.24,201.06,13.44895501]
[1731198464843,23.776884,201.23,201.06,13.44895501]
[1731198465140,20.0,201.22,201.06,13.44895501]
[1731198465354,20.0,201.2,201.06,13.44895501]
[1731198465552,20.0,201.2,201.06,12.94895501]
[1731198465752,20.0,201.18,201.06,12.94895501]
[1731198465939,6.4861,201.24,201.13,13.44895501]
[1731198466363,6.4861,201.24,201.12,13.44895501]
[1731198466753,6.4861,201.24,201.14,13.44895501]
[1731198466944,6.4861,201.24,201.13,13.44895501]
[1731198467365,6.4861,201.24,201.13,21.34510833]
[1731198467666,6.4861,201.24,201.1,21.34510833]
[1731198467967,6.4861,201.24,201.08,21.34510833]
[1731198468268,43.776884,201.23,201.09,21.34510833]
[1731198468460,43.776884,201.23,201.1,21.34510833]
[1731198469073,6.4861,201.24,201.12,21.34510833]
[1731198469365,6.4861,201.24,201.14,21.34510833]
[1731198469567,6.4861,201.24,201.15,21.34510833]
[1731198469950,5.4861,201.24,201.15,21.34510833]
[1731198470567,14.7491,201.36,201.23,21.34510833]
[1731198470778,15.7491,201.42,201.24,21.34510833]
[1731198470779,20.7139,201.42,201.24,21.34510833]
[1731198470951,0.1,201.39,201.2,21.34510833]
[1731198471156,0.2,201.39,201.18,21.34510833]
[1731198471462,15.7491,201.38,201.19,21.34510833]
[1731198471949,15.7491,201.38,201.15,6.2496]
[1731198471950,15.7491,201.38,201.2,21.34510833]
[1731198472371,15.7491,201.38,201.21,21.34510833]
[1731198472750,20.0,201.37,201.21,21.34510833]
[1731198472950,20.0,201.35,201.21,21.34510833]
[1731198473158,23.776884,201.34,201.21,21.34510833]
[1731198473479,23.776884,201.34,201.2,21.34510833]
[1731198473671,23.776884,201.34,201.19,21.34510833]
[1731198473972,23.276884,201.34,201.19,21.34510833]
[1731198474471,22.776884,201.34,201.19,21.34510833]
[1731198475855,20.0,201.33,201.15,21.34510833]
[1731198476171,22.776884,201.34,201.1,21.34510833]
[1731198476172,15.2026,201.38,201.21,21.34510833]
[1731198476354,20.0,201.37,201.22,21.34510833]
[1731198476856,20.0,201.35,201.22,21.34510833]
[1731198477058,20.0,201.35,201.23,21.34510833]
[1731198477572,20.0,201.37,201.23,21.34510833]
[1731198478459,17.32195777,201.38,201.22,21.34510833]
[1731198478772,17.32195777,201.38,201.11,4.966]
[1731198478773,23.776884,201.36,201.18,21.34510833]
[1731198479376,23.776884,201.36,201.2,21.34510833]
[1731198480459,23.776884,201.36,201.12,23.876884]
[1731198480676,21.6005,201.35,201.12,23.776884]
[1731198480871,43.776884,201.28,201.11,21.34510833]
[1731198481887,48.745184,201.28,201.09,36.65420833]
[1731198482064,43.776884,201.28,201.12,21.34510833]
[1731198482471,43.776884,201.28,201.11,21.34510833]
[1731198482663,43.776884,201.28,201.09,15.3091]
[1731198482664,15.2026,201.27,201.1,21.34510833]
[1731198482974,23.776884,201.26,201.11,21.34510833]
[1731198483572,20.0,201.25,201.1,21.34510833]
[1731198483775,6.3979,201.23,201.08,21.34510833]
[1731198484078,6.3979,201.23,201.07,21.34510833]
[1731198484290,6.3979,201.23,201.08,21.34510833]
[1731198484469,23.776884,201.22,201.08,21.34510833]
[1731198484656,23.776884,201.22,201.07,21.34510833]
[1731198484860,23.776884,201.22,201.1,21.34510833]
[1731198485083,6.3979,201.23,201.1,21.34510833]
[1731198485669,6.3979,201.23,201.11,21.34510833]
[1731198486380,6.3979,201.23,201.04,15.2921]
[1731198486580,6.3979,201.23,201.11,21.34510833]
[1731198486780,6.3979,201.23,201.1,21.34510833]
[1731198487482,6.3979,201.23,201.09,21.34510833]
[1731198487692,6.3979,201.23,201.1,21.34510833]
[1731198488062,23.776884,201.22,201.08,21.34510833]
[1731198488465,23.776884,201.22,201.04,15.1921]
[1731198488466,23.776884,201.22,201.07,21.34510833]
[1731198488860,23.776884,201.22,201.06,21.34510833]
[1731198489273,23.776884,201.22,201.04,15.1921]
[1731198489470,23.776884,201.22,201.06,13.34821041]
[1731198490387,20.0,201.21,201.05,13.34821041]
[1731198490678,20.0,201.21,200.96,4.966]
[1731198490679,23.776884,201.18,201.02,13.34821041]
[1731198491467,21.8135,201.19,201.06,13.34821041]
[1731198491976,21.8135,201.19,201.07,13.34821041]
[1731198492180,21.8135,201.19,201.0,13.34821041]
[1731198492181,23.776884,201.18,201.04,13.34821041]
[1731198494160,21.8135,201.19,201.04,13.34821041]
[1731198494665,23.99013431,201.19,201.03,13.34821041]
[1731198494874,20.0,201.18,201.02,13.34821041]
[1731198495673,20.0,201.18,201.01,13.34821041]
[1731198496284,23.776884,201.17,201.01,13.34821041]
[1731198496588,23.776884,201.17,201.0,13.34821041]
[1731198496781,21.7626,201.14,200.99,13.34821041]
[1731198496993,21.7626,201.14,201.0,13.34821041]
[1731198497290,23.776884,201.13,200.99,13.34821041]
[1731198497474,23.776884,201.13,201.0,13.34821041]
[1731198498079,21.7626,201.14,201.0,13.34821041]
[1731198498372,21.7626,201.14,200.94,6.23646417]
[1731198498373,21.7626,201.14,201.01,13.34821041]
[1731198498693,21.7626,201.14,200.94,6.23646417]
[1731198498694,21.7626,201.14,201.03,13.34821041]
[1731198498892,21.7626,201.14,201.04,13.34821041]
[1731198499674,21.7626,201.14,201.01,13.34821041]
[1731198501584,21.7626,201.14,201.0,13.34821041]
[1731198501782,23.776884,201.13,200.99,13.34821041]
[1731198501973,23.776884,201.13,200.98,13.34821041]
[1731198502390,23.776884,201.13,200.99,13.34821041]
[1731198503485,23.776884,201.13,200.94,6.23646417]
[1731198503486,23.776884,201.13,200.98,13.34821041]
[1731198504578,23.776884,201.13,200.99,13.34821041]
[1731198505302,23.776884,201.13,201.01,13.34821041]
[1731198505596,23.776884,201.13,200.99,13.34821041]
[1731198505983,23.776884,201.13,200.97,13.34821041]
[1731198506996,23.776884,201.13,200.98,13.34821041]
[1731198507375,23.776884,201.13,200.99,13.34821041]
[1731198508291,23.776884,201.13,201.02,13.34821041]
[1731198508696,21.7626,201.14,201.0,13.34821041]
[1731198509601,21.7626,201.14,200.99,13.34821041]
[1731198510707,23.97847374,201.14,200.99,13.34821041]
[1731198511597,23.97847374,201.14,201.01,13.34821041]
[1731198512701,23.97847374,201.14,200.99,13.34821041]
[1731198512879,21.7626,201.14,201.04,13.34821041]
[1731198513198,21.7626,201.14,201.05,13.34821041]
[1731198513395,21.7626,201.14,201.04,13.34821041]
[1731198513896,21.7626,201.14,201.03,13.34821041]
[1731198514409,21.7626,201.14,200.93,15.7159]
[1731198514410,23.776884,201.13,200.93,15.6159]
[1731198514712,23.776884,201.13,200.98,13.34821041]
[1731198517618,28.748784,201.13,200.97,13.34821041]
[1731198518007,35.8847,201.09,200.93,28.96411041]
[1731198518206,6.2101,201.08,200.93,13.34821041]
[1731198518403,43.776884,201.07,200.91,13.34821041]
[1731198518609,43.776884,201.07,200.92,13.34821041]
[1731198519412,43.776884,201.07,200.91,13.34821041]
[1731198519618,43.776884,201.07,200.89,13.34821041]
[1731198519619,43.776884,201.05,200.89,13.34821041]
[1731198519795,6.2101,201.02,200.87,14.09455293]
[1731198520111,23.776884,201.01,200.87,14.09455293]
[1731198520820,23.776884,201.01,200.87,0.74634252]
[1731198521207,29.986984,200.99,200.87,0.74634252]
[1731198524098,6.2101,200.99,200.87,0.74634252]
[1731198525916,6.2101,200.99,200.87,14.09455293]
[1731198527724,6.2101,200.99,200.87,0.74634252]
[1731198528421,6.2101,200.99,200.87,14.09455293]
[1731198529831,6.2101,200.99,200.87,0.74634252]
[1731198530716,6.2101,200.99,200.87,0.72634252]
[1731198531337,6.2101,200.99,200.87,14.07455293]
[1731198531704,6.2101,200.99,200.87,0.72634252]
[1731198531908,20.0,200.95,200.78,28.48591041]
[1731198532118,20.0,200.95,200.79,13.34821041]
[1731198532327,23.776884,200.94,200.8,13.34821041]
[1731198532627,23.776884,200.94,200.78,15.1377]
[1731198532628,23.776884,200.94,200.81,13.34821041]
[1731198532826,20.0,200.95,200.81,13.34821041]
[1731198533149,22.14842283,200.95,200.81,13.34821041]
[1731198533450,2.14842283,200.95,200.84,13.34821041]
[1731198533616,6.2101,200.96,200.83,13.34821041]
[1731198533933,6.2101,200.96,200.78,15.1377]
[1731198533934,23.776884,200.95,200.81,13.34821041]
[1731198534829,20.0,200.94,200.8,13.34821041]
[1731198535531,20.0,200.94,200.82,13.34821041]
[1731198536413,23.776884,200.95,200.82,13.34821041]
[1731198538029,23.776884,200.95,200.81,13.34821041]
[1731198538810,20.0,200.92,200.73,15.8542]
[1731198539014,20.0,200.92,200.75,13.34821041]
[1731198539015,20.0,200.88,200.75,13.34821041]
[1731198539226,21.6311,200.91,200.79,13.34821041]
[1731198539407,20.0,200.9,200.79,13.34821041]
[1731198539605,20.0,200.9,200.8,13.34821041]
[1731198540212,19.96569,200.9,200.79,13.34821041]